fUSD/lending_fUSD_20250417
["ID","MTS","AMOUNT","RATE_DAILY","PERIOD"]
[358302130,1744908648133,-1000.0,0.0006731,60]
[358302131,1744908648142,-150.0,0.00067331,60]
[358302132,1744908648153,-150.0,0.00067343,60]
[358302133,1744908648163,-150.0,0.00067359,60]
[358302134,1744908648173,-150.0,0.00067399,60]
[358302135,1744908648182,-150.0,0.00067418,60]
[358302136,1744908648192,-150.0,0.00067425,60]
[358302137,1744908648202,-150.0,0.00067446,60]
[358302138,1744908648212,-150.0,0.0006745,60]
[358302139,1744908648223,-150.0,0.00067463,60]
[358302140,1744908648233,-150.0,0.00067472,60]
[358302141,1744908648244,-1000.0,0.00067501,60]
[358302142,1744908648254,-150.0,0.00067528,60]
[358302143,1744908648265,-1494.55598841,0.00067531,5]
[358302144,1744908648275,-150.0,0.00067537,60]
[358302145,1744908648285,-150.0,0.00067538,60]
[358302146,1744908648295,-150.0,0.00067541,60]
[358302147,1744908648305,-150.0,0.00067552,60]
[358302148,1744908648315,-150.0,0.00067577,60]
[358302149,1744908648324,-150.0,0.0006759,60]
[358302150,1744908648334,-150.0,0.00067602,60]
[358302151,1744908648343,-150.0,0.0006763,60]
[358302152,1744908648353,-150.0,0.00067667,60]
[358302153,1744908648363,-150.0,0.00067679,60]
[358302154,1744908648373,-150.0,0.00067694,60]
[358302155,1744908648383,-150.0,0.00067697,60]
[358302156,1744908648392,-150.0,0.00067708,60]
[358302157,1744908648402,-150.0,0.00067729,60]
[358302158,1744908648415,-150.0,0.00067738,60]
[358302159,1744908648424,-150.0,0.00067757,60]
[358302160,1744908648433,-150.0,0.00067759,60]
[358302161,1744908648443,-248.74,0.00067776,2]
[358302162,1744908648453,-150.0,0.00067798,60]
[358302163,1744908648464,-150.0,0.00067802,60]
[358302164,1744908648474,-150.0,0.00067824,60]
[358302165,1744908648484,-150.0,0.00067826,60]
[358302166,1744908648494,-1000.0,0.00067843,60]
[358302167,1744908648504,-1000.0,0.00067845,60]
[358302168,1744908648513,-150.0,0.00067864,60]
[358302169,1744908648523,-321.62326547,0.00067875,60]
[358302170,1744908648533,-150.0,0.00067877,60]
[358302171,1744908648542,-150.0,0.00067881,60]
[358302172,1744908648551,-150.0,0.00067883,60]
[358302173,1744908648561,-150.0,0.00067884,60]
[358302174,1744908648571,-504.77160348,0.000679,49]
[358302175,1744908648581,-150.0,0.000679,60]
[358302176,1744908648590,-800.0,0.000679,24]
[358302177,1744908648599,-1000.0,0.00067903,60]
[358302178,1744908648608,-150.0,0.00067907,60]
[358302179,1744908648618,-150.0,0.00067915,60]
[358302180,1744908648627,-150.0,0.00067944,60]
[358302181,1744908648637,-150.0,0.00067951,60]
[358302182,1744908648646,-1494.55598841,0.00067953,5]
[358302183,1744908648656,-1000.0,0.00067963,60]
[358302184,1744908648665,-150.0,0.0006798,60]
[358302185,1744908648675,-150.0,0.00067982,60]
[358302186,1744908648685,-150.0,0.00067986,60]
[358302187,1744908648695,-150.0,0.00067997,60]
[358302188,1744908648705,-299.0,0.00068,120]
[358302189,1744908648715,-150.0,0.00068,120]
[358302190,1744908648724,-150.0,0.00068,120]
[358302191,1744908648734,-157.0,0.00068,120]
[358302192,1744908648744,-1000.0,0.00068,120]
[358302193,1744908648754,-150.0,0.00068004,60]
[358302194,1744908648763,-150.0,0.00068033,60]
[358302195,1744908648773,-1000.0,0.0006804,60]
[358302196,1744908648783,-150.0,0.00068048,60]
[358302197,1744908648792,-1000.0,0.00068058,60]
[358302198,1744908648802,-150.0,0.00068065,60]
[358302199,1744908648812,-729.36998007,0.00068085,60]
[358302200,1744908648821,-1000.0,0.00068092,60]
[358302201,1744908648829,-150.0,0.00068093,60]
[358302202,1744908648838,-150.0,0.00068112,60]
[358302203,1744908648849,-1000.0,0.00068124,60]
[358302204,1744908648858,-1494.55598841,0.00068126,5]
[358302205,1744908648867,-150.0,0.00068134,60]
[358302206,1744908648876,-150.0,0.00068136,60]
[358302207,1744908648886,-150.0,0.0006814,60]
[358302208,1744908648897,-150.0,0.00068142,60]
[358302209,1744908648907,-150.0,0.00068144,60]
[358302210,1744908648916,-150.0,0.00068178,60]
[358302211,1744908648926,-150.0,0.00068185,60]
[358302212,1744908648935,-1000.0,0.00068189,60]
[358302213,1744908648945,-150.0,0.00068189,60]
[358302214,1744908648954,-150.0,0.00068204,60]
[358302215,1744908648964,-150.0,0.00068205,60]
[358302216,1744908648974,-150.0,0.00068205,60]
[358302217,1744908648983,-150.0,0.0006821,60]
[358302218,1744908648993,-150.0,0.00068211,60]
[358302219,1744908649004,-150.0,0.00068214,60]
[358302220,1744908649013,-150.0,0.00068232,60]
[358302221,1744908649023,-150.0,0.00068252,60]
[358302222,1744908649032,-150.0,0.0006826,60]
[358302223,1744908649043,-1000.0,0.00068261,60]
[358302224,1744908649052,-150.0,0.00068283,60]
[358302225,1744908649062,-150.0,0.00068287,60]
[358302226,1744908649072,-150.0,0.00068308,60]
[358302227,1744908649082,-150.0,0.00068308,60]
[358302228,1744908649092,-150.0,0.0006831,60]
[358302229,1744908649104,-150.0,0.00068313,60]
[358302230,1744908649113,-150.0,0.00068323,60]
[358302231,1744908649124,-150.0,0.00068324,60]
[358302232,1744908649134,-150.0,0.00068328,60]
[358302233,1744908649144,-150.0,0.00068333,60]
[358302234,1744908649154,-150.0,0.00068335,60]
[358302235,1744908649164,-1000.0,0.00068337,60]
[358302236,1744908649173,-2989.11197682,0.0006834,5]
[358302237,1744908649183,-150.0,0.00068344,60]
[358302238,1744908649192,-150.0,0.00068349,60]
[358302239,1744908649202,-18737.24967288,0.0006835,119]
[358302240,1744908649211,-150.0,0.00068354,60]
[358302241,1744908649221,-150.0,0.00068357,60]
[358302242,1744908649231,-150.0,0.00068359,60]
[358302243,1744908649241,-150.0,0.0006836,60]
[358302244,1744908649252,-150.0,0.00068385,60]
[358302245,1744908649262,-150.0,0.00068392,60]
[358302246,1744908649273,-150.0,0.00068404,60]
[358302247,1744908649283,-150.0,0.00068405,60]
[358302248,1744908649294,-1494.55598841,0.00068412,5]
[358302249,1744908649304,-150.0,0.00068414,60]
[358302250,1744908649315,-150.0,0.00068415,60]
[358302251,1744908649324,-150.0,0.0006842,60]
[358302252,1744908649335,-150.0,0.00068422,60]
[358302253,1744908649345,-150.0,0.00068439,60]
[358302254,1744908649355,-150.0,0.00068453,60]
[358302255,1744908649366,-150.0,0.00068453,60]
[358302256,1744908649375,-150.0,0.00068466,60]
[358302257,1744908649385,-150.0,0.00068469,60]
[358302258,1744908649395,-5978.22395364,0.00068483,5]
[358302259,1744908649406,-302.95279466,0.00068492,120]
[358302260,1744908649419,-255.0,0.00068493,120]
[358302261,1744908649428,-2000.0,0.00068493,120]
[358302262,1744908649438,-500.0,0.00068493,15]
[358302263,1744908649449,-284.38389802,0.00068493,30]
[358302264,1744908649459,-169.0,0.00068493,30]
[358302265,1744908649468,-201.80054994,0.00068493,30]
[358302266,1744908649478,-166.41152776,0.00068493,30]
[358302267,1744908649490,-158.0,0.00068493,30]
[358302268,1744908649499,-158.0,0.00068493,30]
[358302269,1744908649510,-158.0,0.00068493,30]
[358302270,1744908649519,-158.68288562,0.00068493,30]
[358302271,1744908649529,-320.196576,0.00068493,120]
[358302272,1744908649539,-500.0,0.00068493,120]
[358302273,1744908649548,-500.0,0.00068493,120]
[358302274,1744908649559,-500.0,0.00068493,120]
[358302275,1744908649569,-500.0,0.00068493,120]
[358302276,1744908649578,-500.0,0.00068493,120]
[358302277,1744908649588,-500.0,0.00068493,120]
[358302278,1744908649598,-500.0,0.00068493,2]
[358302279,1744908649607,-500.0,0.00068493,120]
[358302280,1744908649617,-500.0,0.00068493,120]
[358302281,1744908649627,-500.0,0.00068493,120]
[358302282,1744908649636,-500.0,0.00068493,120]
[358302283,1744908649645,-500.0,0.00068493,120]
[358302284,1744908649654,-498.82988015,0.00068493,120]
[358302285,1744908649664,-151.0,0.00068493,120]
[358302286,1744908649674,-500.0,0.00068493,120]
[358302287,1744908649683,-500.0,0.00068493,120]
[358302288,1744908649693,-573.68099509,0.00068493,120]
[358302289,1744908649703,-500.0,0.00068493,60]
[358302290,1744908649712,-500.0,0.00068493,120]
[358302291,1744908649722,-500.0,0.00068493,120]
[358302292,1744908649732,-500.0,0.00068493,120]
[358302293,1744908649741,-151.0,0.00068493,120]
[358302294,1744908649751,-514.16540103,0.00068493,120]
[358302295,1744908649760,-725.99,0.00068493,120]
[358302296,1744908649769,-500.0,0.00068493,120]
[358302297,1744908649778,-500.0,0.00068493,120]
[358302298,1744908649788,-500.0,0.00068493,120]
[358302299,1744908649797,-500.0,0.00068493,120]
[358302300,1744908649807,-500.0,0.00068493,120]
[358302301,1744908649818,-500.0,0.00068493,120]
[358302302,1744908649828,-500.0,0.00068493,120]
[358302303,1744908649837,-500.0,0.00068493,120]
[358302304,1744908649847,-500.0,0.00068493,120]
[358302305,1744908649858,-500.0,0.00068493,120]
[358302306,1744908649869,-500.0,0.00068493,120]
[358302307,1744908649879,-500.0,0.00068493,120]
[358302308,1744908649890,-500.0,0.00068493,120]
[358302309,1744908649902,-500.0,0.00068493,120]
[358302310,1744908649913,-594.08,0.00068493,120]
[358302311,1744908649925,-500.0,0.00068493,120]
[358302312,1744908649936,-500.0,0.00068493,120]
[358302313,1744908649946,-517.78,0.00068493,120]
[358302314,1744908649957,-151.906567,0.00068493,120]
[358302315,1744908649971,-500.0,0.00068493,120]
[358302316,1744908649983,-500.0,0.00068493,120]
[358302317,1744908649995,-500.0,0.00068493,120]
[358302318,1744908650007,-500.0,0.00068493,120]
[358302319,1744908650018,-151.0,0.00068493,120]
[358302320,1744908650030,-500.0,0.00068493,120]
[358302321,1744908650042,-517.11623414,0.00068493,120]
[358302322,1744908650054,-500.0,0.00068493,120]
[358302323,1744908650066,-500.0,0.00068493,120]
[358302324,1744908650077,-544.58794161,0.00068493,120]
[358302325,1744908650087,-500.0,0.00068493,120]
[358302326,1744908650098,-500.0,0.00068493,120]
[358302327,1744908650109,-500.0,0.00068493,120]
[358302328,1744908650119,-500.0,0.00068493,120]
[358302329,1744908650130,-500.0,0.00068493,120]
[358302330,1744908650141,-500.0,0.00068493,120]
[358302331,1744908650151,-500.0,0.00068493,120]
[358302332,1744908650161,-500.0,0.00068493,120]
[358302333,1744908650171,-151.0,0.00068493,120]
[358302334,1744908650181,-500.0,0.00068493,120]
[358302335,1744908650192,-500.0,0.00068493,120]
[358302336,1744908650201,-408.12857242,0.00068493,120]
[358302337,1744908650212,-500.0,0.00068493,120]
[358302338,1744908650224,-500.0,0.00068493,120]
[358302339,1744908650233,-500.0,0.00068493,120]
[358302340,1744908650244,-500.0,0.00068493,120]
[358302341,1744908650253,-500.0,0.00068493,120]
[358302342,1744908650263,-500.0,0.00068493,120]
[358302343,1744908650273,-500.0,0.00068493,120]
[358302344,1744908650283,-185.36748913,0.00068493,120]
[358302345,1744908650293,-500.0,0.00068493,120]
[358302346,1744908650302,-500.0,0.00068493,120]
[358302347,1744908650312,-499.37691297,0.00068493,120]
[358302348,1744908650321,-500.0,0.00068493,120]
[358302349,1744908650332,-555.94087239,0.00068493,120]
[358302350,1744908650342,-500.0,0.00068493,120]
[358302351,1744908650352,-501.07181125,0.00068493,120]
[358302352,1744908650362,-500.0,0.00068493,120]
[358302353,1744908650370,-500.0,0.00068493,120]
[358302354,1744908650380,-500.0,0.00068493,90]
[358302355,1744908650390,-500.0,0.00068493,120]
[358302356,1744908650400,-500.0,0.00068493,120]
[358302357,1744908650411,-500.0,0.00068493,120]
[358302358,1744908650422,-642.21070247,0.00068493,120]
[358302359,1744908650431,-500.0,0.00068493,120]
[358302360,1744908650440,-500.0,0.00068493,120]
[358302361,1744908650451,-151.0,0.00068493,120]
[358302362,1744908650460,-500.0,0.00068493,2]
[358302363,1744908650475,-199.480241,0.00068493,2]
[358302364,1744908650486,-758.7,0.00068493,2]
[358302365,1744908650496,-506.04140735,0.00068493,120]
[358302366,1744908650506,-151.0,0.00068493,120]
[358302367,1744908650516,-500.0,0.00068493,120]
[358302368,1744908650526,-377.3547038,0.00068493,120]
[358302369,1744908650535,-500.0,0.00068493,120]
[358302370,1744908650545,-500.0,0.00068493,120]
[358302371,1744908650646,-151.0,0.00068493,120]
[358302372,1744908650674,-500.0,0.00068493,120]
[358302373,1744908650684,-151.0,0.00068493,120]
[358302374,1744908650694,-500.0,0.00068493,120]
[358302375,1744908650704,-235.75,0.00068493,120]
[358302376,1744908650717,-500.0,0.00068493,120]
[358302377,1744908650728,-500.0,0.00068493,120]
[358302378,1744908650737,-151.0,0.00068493,120]
[358302379,1744908650747,-500.0,0.00068493,120]
[358302380,1744908650757,-500.22629589,0.00068493,120]
[358302381,1744908650767,-500.0,0.00068493,120]
[358302382,1744908650776,-500.0,0.00068493,120]
[358302383,1744908650786,-500.0,0.00068493,120]
[358302384,1744908650796,-500.0,0.00068493,120]
[358302385,1744908650805,-500.0,0.00068493,120]
[358302386,1744908650814,-558.56244935,0.00068493,120]
[358302387,1744908650824,-500.0,0.00068493,120]
[358302388,1744908650833,-500.0,0.00068493,120]
[358302389,1744908650842,-500.0,0.00068493,120]
[358302390,1744908650852,-337.92127482,0.00068493,120]
[358302391,1744908650862,-559.74,0.00068493,120]
[358302392,1744908650871,-500.0,0.00068493,120]
[358302393,1744908650882,-500.0,0.00068493,120]
[358302394,1744908650893,-500.0,0.00068493,120]
[358302395,1744908650904,-500.0,0.00068493,120]
[358302396,1744908650913,-500.0,0.00068493,120]
[358302397,1744908650923,-500.0,0.00068493,120]
[358302398,1744908650933,-151.0,0.00068493,120]
[358302399,1744908650943,-500.0,0.00068493,30]
[358302400,1744908650952,-500.0,0.00068493,120]
[358302401,1744908650962,-500.0,0.00068493,120]
[358302402,1744908650973,-503.12133546,0.00068493,120]
[358302403,1744908650982,-535.92510622,0.00068493,120]
[358302404,1744908650992,-500.0,0.00068493,120]
[358302405,1744908651002,-502.74726066,0.00068493,120]
[358302406,1744908651011,-559.80703594,0.00068493,120]
[358302407,1744908651021,-500.0,0.00068493,120]
[358302408,1744908651030,-500.0,0.00068493,120]
[358302409,1744908651040,-558.5430597,0.00068493,120]
[358302410,1744908651050,-513.12125112,0.00068493,120]
[358302411,1744908651059,-500.0,0.00068493,120]
[358302412,1744908651068,-500.0,0.00068493,120]
[358302413,1744908651078,-500.0,0.00068493,120]
[358302414,1744908651088,-540.94462221,0.00068493,120]
[358302415,1744908651098,-500.0,0.00068493,120]
[358302416,1744908651108,-500.0,0.00068493,120]
[358302417,1744908651117,-500.0,0.00068493,120]
[358302418,1744908651127,-500.0,0.00068493,120]
[358302419,1744908651139,-554.42203525,0.00068493,120]
[358302420,1744908651149,-500.0,0.00068493,120]
[358302421,1744908651160,-150.0,0.00068493,120]
[358302422,1744908651171,-500.0,0.00068493,120]
[358302423,1744908651181,-500.0,0.00068493,120]
[358302424,1744908651192,-500.0,0.00068493,120]
[358302425,1744908651203,-573.24126322,0.00068493,120]
[358302426,1744908651214,-500.0,0.00068493,120]
[358302427,1744908651226,-500.0,0.00068493,120]
[358302428,1744908651238,-500.0,0.00068493,120]
[358302429,1744908651248,-500.0,0.00068493,120]
[358302430,1744908651259,-500.0,0.00068493,120]
[358302431,1744908651270,-558.15,0.00068493,120]
[358302432,1744908651280,-150.0,0.00068493,120]
[358302433,1744908651290,-500.0,0.00068493,120]
[358302434,1744908651301,-150.0,0.00068493,120]
[358302435,1744908651312,-500.0,0.00068493,120]
[358302436,1744908651322,-500.0,0.00068493,120]
[358302437,1744908651332,-500.0,0.00068493,120]
[358302438,1744908651343,-500.0,0.00068493,120]
[358302439,1744908651352,-150.0,0.00068493,120]
[358302440,1744908651362,-500.0,0.00068493,120]
[358302441,1744908651371,-500.7346098,0.00068493,120]
[358302442,1744908651381,-500.0,0.00068493,120]
[358302443,1744908651391,-500.0,0.00068493,120]
[358302444,1744908651401,-151.0,0.00068493,120]
[358302445,1744908651411,-500.0,0.00068493,120]
[358302446,1744908651423,-501.14898559,0.00068493,120]
[358302447,1744908651433,-151.0,0.00068493,120]
[358302448,1744908651442,-500.0,0.00068493,120]
[358302449,1744908651453,-151.0,0.00068493,120]
[358302450,1744908651462,-500.0,0.00068493,120]
[358302451,1744908651473,-500.0,0.00068493,120]
[358302452,1744908651483,-151.0,0.00068493,120]
[358302453,1744908651494,-500.0,0.00068493,120]
[358302454,1744908651505,-500.0,0.00068493,120]
[358302455,1744908651514,-500.0,0.00068493,120]
[358302456,1744908651524,-500.0,0.00068493,120]
[358302457,1744908651533,-500.0,0.00068493,120]
[358302458,1744908651543,-500.0,0.00068493,120]
[358302459,1744908651552,-500.0,0.00068493,120]
[358302460,1744908651562,-500.0,0.00068493,120]
[358302461,1744908651572,-547.52428571,0.00068493,120]
[358302462,1744908651582,-500.0,0.00068493,120]
[358302463,1744908651593,-500.0,0.00068493,120]
[358302464,1744908651603,-500.0,0.00068493,120]
[358302465,1744908651613,-151.0,0.00068493,120]
[358302466,1744908651623,-500.0,0.00068493,120]
[358302467,1744908651634,-608.62447741,0.00068493,120]
[358302468,1744908651643,-500.0,0.00068493,120]
[358302469,1744908651653,-500.0,0.00068493,120]
[358302470,1744908651662,-500.0,0.00068493,14]
[358302471,1744908651671,-500.0,0.00068493,120]
[358302472,1744908651681,-589.39,0.00068493,120]
[358302473,1744908651691,-500.0,0.00068493,120]
[358302474,1744908651700,-500.0,0.00068493,120]
[358302475,1744908651710,-553.33548152,0.00068493,120]
[358302476,1744908651720,-599.28060879,0.00068493,120]
[358302477,1744908651730,-151.0,0.00068493,120]
[358302478,1744908651739,-500.0,0.00068493,120]
[358302479,1744908651748,-495.83079731,0.00068493,120]
[358302480,1744908651759,-500.0,0.00068493,120]
[358302481,1744908651767,-500.0,0.00068493,120]
[358302482,1744908651776,-500.0,0.00068493,120]
[358302483,1744908651785,-503.39149744,0.00068493,120]
[358302484,1744908651795,-500.0,0.00068493,120]
[358302485,1744908651804,-500.0,0.00068493,120]
[358302486,1744908651813,-500.0,0.00068493,120]
[358302487,1744908651822,-499.92729875,0.00068493,120]
[358302488,1744908651831,-500.0,0.00068493,120]
[358302489,1744908651840,-500.0,0.00068493,120]
[358302490,1744908651849,-500.0,0.00068493,120]
[358302491,1744908651858,-500.0,0.00068493,120]
[358302492,1744908651867,-151.0,0.00068493,120]
[358302493,1744908651876,-155.034286,0.00068493,120]
[358302494,1744908651885,-500.0,0.00068493,120]
[358302495,1744908651894,-500.0,0.00068493,120]
[358302496,1744908651903,-503.38586923,0.00068493,120]
[358302497,1744908651913,-500.0,0.00068493,120]
[358302498,1744908651922,-500.0,0.00068493,120]
[358302499,1744908651931,-500.0,0.00068493,120]
[358302500,1744908651941,-500.0,0.00068493,120]
[358302501,1744908651951,-151.0,0.00068493,120]
[358302502,1744908651961,-500.0,0.00068493,120]
[358302503,1744908651971,-500.0,0.00068493,120]
[358302504,1744908651981,-362.52,0.00068493,120]
[358302505,1744908651990,-500.0,0.00068493,120]
[358302506,1744908651999,-500.0,0.00068493,120]
[358302507,1744908652008,-500.0,0.00068493,120]
[358302508,1744908652018,-500.0,0.00068493,120]
[358302509,1744908652027,-151.0,0.00068493,120]
[358302510,1744908652036,-520.32753569,0.00068493,120]
[358302511,1744908652045,-500.0,0.00068493,120]
[358302512,1744908652055,-515.1966168,0.00068493,120]
[358302513,1744908652065,-500.0,0.00068493,120]
[358302514,1744908652074,-500.0,0.00068493,120]
[358302515,1744908652084,-444.8279231,0.00068493,120]
[358302516,1744908652093,-500.0,0.00068493,120]
[358302517,1744908652103,-500.0,0.00068493,120]
[358302518,1744908652112,-500.0,0.00068493,120]
[358302519,1744908652121,-500.0,0.00068493,120]
[358302520,1744908652130,-500.0,0.00068493,120]
[358302521,1744908652140,-500.0,0.00068493,120]
[358302522,1744908652149,-500.0,0.00068493,120]
[358302523,1744908652159,-480.53560626,0.00068493,120]
[358302524,1744908652168,-500.0,0.00068493,2]
[358302525,1744908652178,-506.93065253,0.00068493,120]
[358302526,1744908652187,-500.0,0.00068493,120]
[358302527,1744908652197,-500.0,0.00068493,120]
[358302528,1744908652206,-500.0,0.00068493,20]
[358302529,1744908652215,-500.0,0.00068493,120]
[358302530,1744908652225,-500.0,0.00068493,120]
[358302531,1744908652235,-500.0,0.00068493,120]
[358302532,1744908652245,-500.0,0.00068493,120]
[358302533,1744908652254,-500.0,0.00068493,120]
[358302534,1744908652263,-294.14743454,0.00068493,120]
[358302535,1744908652273,-534.9524165,0.00068493,120]
[358302536,1744908652282,-474.42348073,0.00068493,120]
[358302537,1744908652293,-500.0,0.00068493,120]
[358302538,1744908652302,-500.0,0.00068493,120]
[358302539,1744908652312,-500.0,0.00068493,120]
[358302540,1744908652322,-322.18663544,0.00068493,120]
[358302541,1744908652331,-179.70608109,0.00068493,120]
[358302542,1744908652340,-500.0,0.00068493,120]
[358302543,1744908652350,-500.0,0.00068493,120]
[358302544,1744908652358,-500.0,0.00068493,120]
[358302545,1744908652368,-500.0,0.00068493,120]
[358302546,1744908652377,-500.0,0.00068493,120]
[358302547,1744908652387,-500.0,0.00068493,120]
[358302548,1744908652396,-252.18114062,0.00068493,120]
[358302549,1744908652407,-500.0,0.00068493,120]
[358302550,1744908652418,-500.0,0.00068493,120]
[358302551,1744908652427,-500.0,0.00068493,120]
[358302552,1744908652437,-500.0,0.00068493,120]
[358302553,1744908652448,-164.69,0.00068493,120]
[358302554,1744908652458,-273.40777574,0.00068493,120]
[358302555,1744908652468,-500.0,0.00068493,120]
[358302556,1744908652477,-532.99160429,0.00068493,120]
[358302557,1744908652489,-500.0,0.00068493,120]
[358302558,1744908652501,-500.0,0.00068493,120]
[358302559,1744908652511,-500.0,0.00068493,120]
[358302560,1744908652521,-500.0,0.00068493,120]
[358302561,1744908652530,-500.0,0.00068493,120]
[358302562,1744908652538,-500.0,0.00068493,120]
[358302563,1744908652547,-500.0,0.00068493,120]
[358302564,1744908652557,-500.0,0.00068493,120]
[358302565,1744908652566,-500.0,0.00068493,120]
[358302566,1744908652575,-500.0,0.00068493,120]
[358302567,1744908652585,-500.0,0.00068493,120]
[358302568,1744908652595,-500.0,0.00068493,120]
[358302569,1744908652604,-500.0,0.00068493,120]
[358302570,1744908652614,-500.0,0.00068493,120]
[358302571,1744908652623,-500.0,0.00068493,120]
[358302572,1744908652633,-500.0,0.00068493,120]
[358302573,1744908652643,-514.2613238,0.00068493,120]
[358302574,1744908652652,-500.0,0.00068493,120]
[358302575,1744908652662,-500.0,0.00068493,120]
[358302576,1744908652671,-500.0,0.00068493,120]
[358302577,1744908652680,-500.0,0.00068493,120]
[358302578,1744908652690,-500.0,0.00068493,120]
[358302579,1744908652700,-500.0,0.00068493,120]
[358302580,1744908652709,-500.0,0.00068493,120]
[358302581,1744908652720,-181.742684,0.00068493,120]
[358302582,1744908652729,-541.2737918,0.00068493,120]
[358302583,1744908652739,-500.0,0.00068493,120]
[358302584,1744908652749,-500.0,0.00068493,120]
[358302585,1744908652759,-500.0,0.00068493,120]
[358302586,1744908652768,-250.0,0.00068493,120]
[358302587,1744908652778,-500.0,0.00068493,120]
[358302588,1744908652787,-500.0,0.00068493,120]
[358302589,1744908652797,-500.0,0.00068493,120]
[358302590,1744908652806,-500.0,0.00068493,120]
[358302591,1744908652816,-500.0,0.00068493,120]
[358302592,1744908652825,-500.0,0.00068493,120]
[358302593,1744908652834,-500.0,0.00068493,120]
[358302594,1744908652844,-500.0,0.00068493,120]
[358302595,1744908652853,-500.0,0.00068493,120]
[358302596,1744908652862,-500.0,0.00068493,120]
[358302597,1744908652962,-501.46580161,0.00068493,120]
[358302598,1744908652973,-500.0,0.00068493,120]
[358302599,1744908652983,-500.0,0.00068493,120]
[358302600,1744908652992,-151.0,0.00068493,120]
[358302601,1744908653001,-500.0,0.00068493,120]
[358302602,1744908653011,-512.85969375,0.00068493,120]
[358302603,1744908653020,-500.0,0.00068493,120]
[358302604,1744908653029,-500.0,0.00068493,120]
[358302605,1744908653039,-500.0,0.00068493,120]
[358302606,1744908653047,-500.0,0.00068493,120]
[358302607,1744908653057,-500.0,0.00068493,120]
[358302608,1744908653066,-500.0,0.00068493,120]
[358302609,1744908653075,-500.0,0.00068493,120]
[358302610,1744908653084,-498.65070074,0.00068493,120]
[358302611,1744908653094,-500.0,0.00068493,120]
[358302612,1744908653103,-500.0,0.00068493,120]
[358302613,1744908653112,-1419.69,0.00068493,120]
[358302614,1744908653122,-500.0,0.00068493,120]
[358302615,1744908653131,-500.0,0.00068493,120]
[358302616,1744908653141,-1000.0,0.00068493,35]
[358302617,1744908653150,-500.0,0.00068493,120]
[358302618,1744908653159,-522.08405698,0.00068493,120]
[358302619,1744908653168,-500.0,0.00068493,120]
[358302620,1744908653178,-503.79170895,0.00068493,120]
[358302621,1744908653187,-500.0,0.00068493,120]
[358302622,1744908653197,-500.0,0.00068493,120]
[358302623,1744908653206,-6046.19,0.00068493,120]
[358302624,1744908653217,-500.0,0.00068493,120]
[358302625,1744908653226,-500.0,0.00068493,120]
[358302626,1744908653236,-598.31775241,0.00068493,120]
[358302627,1744908653245,-500.0,0.00068493,120]
[358302628,1744908653255,-500.0,0.00068493,120]
[358302629,1744908653264,-5453.88,0.00068493,120]